fUSD/lending_fUSD_20260627
["ID","MTS","AMOUNT","RATE_DAILY","PERIOD"]
[426505030,1782491438000,-2086.62,0.00031507,30]
[426505031,1782491438000,-1000.0,0.00031507,14]
[426505033,1782491438000,-278.82,0.00031621,3]
[426505034,1782491438000,-10000.0,0.00031667,2]
[426505032,1782491438000,-234.0,0.00031507,7]
[426505028,1782491438000,-562.60658529,0.00031333,2]
[426505029,1782491438000,-500.0,0.00031506,14]
[426505037,1782491438000,-3106.8,0.00031882,10]
[426505036,1782491438000,-2000.0,0.00031738,16]
[426505027,1782491438000,-4317.242,0.00024499,2]
[426505049,1782491438000,-4662.34781104,0.00032455,2]
[426505026,1782491438000,-6084.0,0.00021499,2]
[426505035,1782491438000,-1253.48426473,0.00031699,11]
[426505053,1782491438000,-7534.8337739,0.00032455,2]
[426505063,1782491438000,-2000.0,0.00032875,14]
[426505052,1782491438000,-1656.84057378,0.00032455,2]
[426505050,1782491438000,-261.5289737,0.00032455,2]
[426505071,1782491438000,-152.0,0.0003296,7]
[426505074,1782491438000,-152.0,0.0003296,7]
[426505069,1782491438000,-623.31443486,0.0003296,60]
[426505072,1782491438000,-152.0,0.0003296,7]
[426505070,1782491438000,-152.0,0.0003296,7]
[426505080,1782491438000,-6105.06527686,0.0003296,20]
[426505067,1782491438000,-2000.0,0.00032899,30]
[426505078,1782491438000,-240.0,0.0003296,7]
[426505068,1782491438000,-2000.0,0.00032959,20]
[426505065,1782491438000,-2000.0,0.00032876,7]
[426505062,1782491438000,-173.24479151,0.00032795,2]
[426505076,1782491438000,-152.0,0.0003296,7]
[426505066,1782491438000,-2000.0,0.00032884,2]
[426505064,1782491438000,-500.0,0.00032876,14]
[426505054,1782491438000,-2902.4423526,0.00032455,2]
[426505056,1782491438000,-270.0,0.00032639,3]
[426505059,1782491438000,-170.0,0.0003272,7]
[426505057,1782491438000,-381.79472438,0.00032643,2]
[426505058,1782491438000,-2000.0,0.00032668,3]
[426505060,1782491438000,-350.0,0.00032756,26]
[426505061,1782491438000,-1883.83,0.00032761,30]
[426505055,1782491438000,-2000.0,0.00032499,5]
[426505051,1782491438000,-3837.68007642,0.00032455,2]
[426505113,1782491440000,-636.2979,0.000333,30]
[426505118,1782491440000,-1000.0,0.00033419,10]
[426505106,1782491440000,-446.0,0.00033145,10]
[426505107,1782491440000,-158.44088214,0.00033148,7]
[426505108,1782491440000,-315.0,0.00033167,7]
[426505116,1782491440000,-214.47883907,0.00033374,2]
[426505114,1782491440000,-4119.79799788,0.00033333,7]
[426505126,1782491440000,-151.0,0.00033473,7]
[426505120,1782491440000,-151.0,0.00033472,7]
[426505119,1782491440000,-164.20104985,0.00033464,2]
[426505122,1782491440000,-151.0,0.00033472,7]
[426505128,1782491440000,-151.0,0.00033473,7]
[426505127,1782491440000,-151.0,0.00033473,7]
[426505125,1782491440000,-151.0,0.00033473,7]
[426505124,1782491440000,-151.0,0.00033473,7]
[426505117,1782491440000,-381.79472438,0.00033386,2]
[426505121,1782491440000,-151.0,0.00033472,7]
[426505115,1782491440000,-184.87727102,0.00033352,22]
[426505130,1782491440000,-151.0,0.00033473,7]
[426505123,1782491440000,-151.0,0.00033473,7]
[426505111,1782491440000,-195.83469821,0.00033231,30]
[426505095,1782491440000,-34023.51601196,0.00033,2]
[426505104,1782491440000,-5000.0,0.0003311,5]
[426505141,1782491440000,-151.0,0.00033473,7]
[426505088,1782491440000,-88234.52713871,0.0003296,20]
[426505090,1782491440000,-5646.89751034,0.00032989,2]
[426505091,1782491440000,-206.53873987,0.00032989,2]
[426505089,1782491440000,-184.87727102,0.00032985,21]
[426505092,1782491440000,-430.8776711,0.00032989,2]
[426505096,1782491440000,-3699.95718924,0.00033,2]
[426505094,1782491440000,-18427.68500503,0.00033,2]
[426505093,1782491440000,-50000.0,0.00033,4]
[426505097,1782491440000,-11328.13492417,0.00033,7]
[426505102,1782491440000,-800.0,0.00033,5]
[426505098,1782491440000,-4190.0,0.00033,6]
[426505099,1782491440000,-514.18749954,0.00033,40]
[426505100,1782491440000,-571.85755635,0.00033,5]
[426505103,1782491440000,-800.0,0.00033,5]
[426505101,1782491440000,-3526.0,0.00033,2]
[426505105,1782491440000,-151.56702897,0.0003311,34]
[426505109,1782491440000,-803.68,0.00033181,30]
[426505110,1782491440000,-14271.81080701,0.000332,2]
[426505112,1782491440000,-1000.0,0.00033282,10]
[426505129,1782491440000,-156.205795,0.00033473,7]
[426505191,1782491440000,-151.0,0.00033473,7]
[426505131,1782491440000,-156.205795,0.00033473,7]
[426505185,1782491440000,-151.670452,0.00033473,7]
[426505179,1782491440000,-151.670452,0.00033473,7]
[426505177,1782491440000,-278.248525,0.00033473,7]
[426505171,1782491440000,-151.0,0.00033473,7]
[426505181,1782491440000,-151.670452,0.00033473,7]
[426505183,1782491440000,-151.670452,0.00033473,7]
[426505195,1782491440000,-151.0,0.00033473,7]
[426505193,1782491440000,-151.0,0.00033473,7]
[426505187,1782491440000,-151.0,0.00033473,7]
[426505189,1782491440000,-151.0,0.00033473,7]
[426505201,1782491440000,-217.248121,0.00033473,7]
[426505199,1782491440000,-151.0,0.00033473,7]
[426505206,1782491440000,-151.0,0.00033473,7]
[426505207,1782491440000,-151.0,0.00033473,7]
[426505197,1782491440000,-151.0,0.00033473,7]
[426505205,1782491440000,-151.0,0.00033473,7]
[426505208,1782491440000,-151.0,0.00033473,7]
[426505209,1782491440000,-151.0,0.00033473,7]
[426505132,1782491440000,-151.0,0.00033473,7]
[426505175,1782491440000,-246.310912,0.00033473,7]
[426505173,1782491440000,-151.0,0.00033473,7]
[426505203,1782491440000,-151.0,0.00033473,7]
[426505165,1782491440000,-151.0,0.00033473,7]
[426505134,1782491440000,-151.0,0.00033473,7]
[426505161,1782491440000,-153.211994,0.00033473,7]
[426505136,1782491440000,-151.0,0.00033473,7]
[426505133,1782491440000,-156.205795,0.00033473,7]
[426505138,1782491440000,-151.0,0.00033473,7]
[426505135,1782491440000,-156.205795,0.00033473,7]
[426505139,1782491440000,-151.0,0.00033473,7]
[426505143,1782491440000,-151.0,0.00033473,7]
[426505151,1782491440000,-151.0,0.00033473,7]
[426505149,1782491440000,-151.0,0.00033473,7]
[426505137,1782491440000,-195.79934,0.00033473,7]
[426505145,1782491440000,-151.0,0.00033473,7]
[426505147,1782491440000,-151.0,0.00033473,7]
[426505157,1782491440000,-153.211994,0.00033473,7]
[426505163,1782491440000,-153.211994,0.00033473,7]
[426505155,1782491440000,-229.637352,0.00033473,7]
[426505167,1782491440000,-151.0,0.00033473,7]
[426505153,1782491440000,-151.0,0.00033473,7]
[426505159,1782491440000,-153.211994,0.00033473,7]
[426505169,1782491440000,-151.0,0.00033473,7]
[426505246,1782491441000,-300.0,0.00033474,2]
[426505253,1782491441000,-300.0,0.00033474,2]
[426505255,1782491441000,-300.0,0.00033474,2]
[426505254,1782491441000,-300.0,0.00033474,2]
[426505248,1782491441000,-300.0,0.00033474,2]
[426505250,1782491441000,-300.0,0.00033474,2]
[426505242,1782491441000,-300.0,0.00033474,2]
[426505244,1782491441000,-585.02765623,0.00033474,2]
[426505249,1782491441000,-300.0,0.00033474,2]
[426505265,1782491441000,-345.52149445,0.00033474,2]
[426505245,1782491441000,-300.0,0.00033474,2]
[426505264,1782491441000,-345.52149444,0.00033474,2]
[426505268,1782491441000,-345.55466882,0.00033474,2]
[426505256,1782491441000,-300.0,0.00033474,2]
[426505262,1782491441000,-398.10229208,0.00033474,2]
[426505261,1782491441000,-345.52149444,0.00033474,2]
[426505257,1782491441000,-300.0,0.00033474,2]
[426505260,1782491441000,-345.52149444,0.00033474,2]
[426505259,1782491441000,-300.0,0.00033474,2]
[426505258,1782491441000,-300.0,0.00033474,2]
[426505263,1782491441000,-345.52149444,0.00033474,2]
[426505278,1782491441000,-161.63786979,0.00033474,2]
[426505267,1782491441000,-345.55466882,0.00033474,2]
[426505243,1782491441000,-355.34080412,0.00033474,2]
[426505270,1782491441000,-345.55466882,0.00033474,2]
[426505266,1782491441000,-345.55466882,0.00033474,2]
[426505247,1782491441000,-300.0,0.00033474,2]
[426505220,1782491441000,-357.55694,0.00033473,7]
[426505252,1782491441000,-300.0,0.00033474,2]
[426505269,1782491441000,-345.55466882,0.00033474,2]
[426505210,1782491441000,-151.0,0.00033473,7]
[426505211,1782491441000,-151.0,0.00033473,7]
[426505225,1782491441000,-179.943133,0.00033473,7]
[426505218,1782491441000,-151.0,0.00033473,7]
[426505224,1782491441000,-179.943133,0.00033473,7]
[426505222,1782491441000,-357.55694,0.00033473,7]
[426505221,1782491441000,-357.55694,0.00033473,7]
[426505223,1782491441000,-357.55694,0.00033473,7]
[426505226,1782491441000,-179.943133,0.00033473,7]
[426505229,1782491441000,-151.0,0.00033473,7]
[426505228,1782491441000,-151.0,0.00033473,7]
[426505232,1782491441000,-151.0,0.00033473,7]
[426505236,1782491441000,-300.0,0.00033474,2]
[426505233,1782491441000,-151.0,0.00033473,7]
[426505231,1782491441000,-151.0,0.00033473,7]
[426505234,1782491441000,-151.0,0.00033473,7]
[426505230,1782491441000,-151.0,0.00033473,7]
[426505235,1782491441000,-151.0,0.00033473,7]
[426505227,1782491441000,-179.943133,0.00033473,7]
[426505237,1782491441000,-300.0,0.00033474,2]
[426505238,1782491441000,-300.0,0.00033474,2]
[426505239,1782491441000,-300.0,0.00033474,2]
[426505241,1782491441000,-599.88185372,0.00033474,2]
[426505251,1782491441000,-300.0,0.00033474,2]
[426505240,1782491441000,-300.0,0.00033474,2]
[426505272,1782491441000,-300.0,0.00033474,2]
[426505302,1782491441000,-494.99640448,0.00033474,2]
[426505277,1782491441000,-607.42547749,0.00033474,2]
[426505306,1782491441000,-301.9537207,0.00033474,2]
[426505305,1782491441000,-303.18310389,0.00033474,2]
[426505307,1782491441000,-300.0,0.00033474,2]
[426505304,1782491441000,-729.63483157,0.00033474,2]
[426505310,1782491441000,-345.55466882,0.00033474,2]
[426505308,1782491441000,-300.0,0.00033474,2]
[426505309,1782491441000,-300.0,0.00033474,2]
[426505311,1782491441000,-529.2919048,0.00033474,2]
[426505315,1782491441000,-568.67920707,0.00033474,2]
[426505316,1782491441000,-596.93903619,0.00033474,2]
[426505312,1782491441000,-953.74057479,0.00033474,2]
[426505313,1782491441000,-576.04666195,0.00033474,2]
[426505317,1782491441000,-512.19845564,0.00033474,2]
[426505318,1782491441000,-513.60695689,0.00033474,2]
[426505319,1782491441000,-300.0,0.00033474,2]
[426505314,1782491441000,-311.01241424,0.00033474,2]
[426505320,1782491441000,-584.29563,0.00033474,2]
[426505321,1782491441000,-453.99961565,0.00033474,2]
[426505323,1782491441000,-445.79408902,0.00033474,2]
[426505322,1782491441000,-300.0,0.00033474,2]
[426505325,1782491441000,-1100.41620887,0.00033474,2]
[426505324,1782491441000,-300.0,0.00033474,2]
[426505329,1782491441000,-303.18310389,0.00033474,2]
[426505274,1782491441000,-300.0,0.00033474,2]
[426505326,1782491441000,-494.99640448,0.00033474,2]
[426505303,1782491441000,-607.42547747,0.00033474,2]
[426505299,1782491441000,-300.0,0.00033474,2]
[426505327,1782491441000,-607.42547749,0.00033474,2]
[426505298,1782491441000,-445.79408902,0.00033474,2]
[426505297,1782491441000,-300.0,0.00033474,2]
[426505271,1782491441000,-311.01241424,0.00033474,2]
[426505275,1782491441000,-300.0,0.00033474,2]
[426505276,1782491441000,-494.99640448,0.00033474,2]
[426505279,1782491441000,-567.9969618,0.00033474,2]
[426505280,1782491441000,-303.18310389,0.00033474,2]
[426505285,1782491441000,-345.55466882,0.00033474,2]
[426505286,1782491441000,-529.2919048,0.00033474,2]
[426505287,1782491441000,-953.74057479,0.00033474,2]
[426505281,1782491441000,-301.95372068,0.00033474,2]
[426505282,1782491441000,-300.0,0.00033474,2]
[426505284,1782491441000,-300.0,0.00033474,2]
[426505273,1782491441000,-1100.41620887,0.00033474,2]
[426505288,1782491441000,-576.04666195,0.00033474,2]
[426505300,1782491441000,-1100.41620887,0.00033474,2]
[426505294,1782491441000,-300.0,0.00033474,2]
[426505295,1782491441000,-584.29563,0.00033474,2]
[426505283,1782491441000,-300.0,0.00033474,2]
[426505290,1782491441000,-568.67920707,0.00033474,2]
[426505296,1782491441000,-453.99961565,0.00033474,2]
[426505328,1782491441000,-729.63483158,0.00033474,2]
[426505293,1782491441000,-513.60695689,0.00033474,2]
[426505292,1782491441000,-300.0,0.00033474,2]
[426505291,1782491441000,-596.93903619,0.00033474,2]
[426505289,1782491441000,-311.01241424,0.00033474,2]
[426505301,1782491441000,-517.26492733,0.00033474,2]
[426505363,1782491442000,-300.0,0.00033474,2]
[426505371,1782491442000,-301.95372069,0.00033474,2]
[426505364,1782491442000,-445.79408902,0.00033474,2]
[426505361,1782491442000,-454.37343494,0.00033474,2]
[426505359,1782491442000,-596.93903619,0.00033474,2]
[426505367,1782491442000,-494.99640448,0.00033474,2]
[426505362,1782491442000,-453.99961565,0.00033474,2]
[426505360,1782491442000,-513.60695689,0.00033474,2]
[426505356,1782491442000,-953.74057479,0.00033474,2]
[426505365,1782491442000,-300.0,0.00033474,2]
[426505370,1782491442000,-303.18310389,0.00033474,2]
[426505384,1782491442000,-300.0,0.00033474,2]
[426505366,1782491442000,-1100.41620887,0.00033474,2]
[426505368,1782491442000,-607.42547747,0.00033474,2]
[426505372,1782491442000,-473.30067101,0.00033474,2]
[426505374,1782491442000,-529.2919048,0.00033474,2]
[426505385,1782491442000,-1100.41620887,0.00033474,2]
[426505373,1782491442000,-345.55466882,0.00033474,2]
[426505376,1782491442000,-576.04666195,0.00033474,2]
[426505377,1782491442000,-311.03956386,0.00033474,2]
[426505375,1782491442000,-953.74057479,0.00033474,2]
[426505381,1782491442000,-453.99961565,0.00033474,2]
[426505357,1782491442000,-576.04666195,0.00033474,2]
[426505369,1782491442000,-729.63483158,0.00033474,2]
[426505348,1782491442000,-494.99640448,0.00033474,2]
[426505343,1782491442000,-453.99961565,0.00033474,2]
[426505350,1782491442000,-729.63483158,0.00033474,2]
[426505331,1782491442000,-300.0,0.00033474,2]
[426505330,1782491442000,-301.9537207,0.00033474,2]
[426505333,1782491442000,-511.58113271,0.00033474,2]
[426505332,1782491442000,-335.6935043,0.00033474,2]
[426505334,1782491442000,-345.55466882,0.00033474,2]
[426505337,1782491442000,-576.04666195,0.00033474,2]
[426505338,1782491442000,-568.67920707,0.00033474,2]
[426505341,1782491442000,-469.73980279,0.00033474,2]
[426505340,1782491442000,-513.60695689,0.00033474,2]
[426505336,1782491442000,-953.74057479,0.00033474,2]
[426505342,1782491442000,-584.29563,0.00033474,2]
[426505335,1782491442000,-529.2919048,0.00033474,2]
[426505339,1782491442000,-596.93903619,0.00033474,2]
[426505345,1782491442000,-445.79408902,0.00033474,2]
[426505347,1782491442000,-1100.41620887,0.00033474,2]
[426505344,1782491442000,-300.0,0.00033474,2]
[426505346,1782491442000,-300.0,0.00033474,2]
[426505349,1782491442000,-607.42547749,0.00033474,2]
[426505358,1782491442000,-568.67920707,0.00033474,2]
[426505353,1782491442000,-300.0,0.00033474,2]
[426505354,1782491442000,-345.55466882,0.00033474,2]
[426505355,1782491442000,-529.2919048,0.00033474,2]
[426505351,1782491442000,-303.18310389,0.00033474,2]
[426505352,1782491442000,-301.95372067,0.00033474,2]
[426505378,1782491442000,-568.67920707,0.00033474,2]
[426505380,1782491442000,-513.60695689,0.00033474,2]
[426505379,1782491442000,-596.93903619,0.00033474,2]
[426505416,1782491442000,-311.03956386,0.00033474,2]
[426505426,1782491442000,-445.79408902,0.00033474,2]
[426505417,1782491442000,-568.67920707,0.00033474,2]
[426505421,1782491442000,-513.60695689,0.00033474,2]
[426505428,1782491442000,-1100.41620887,0.00033474,2]
[426505424,1782491442000,-453.99961565,0.00033474,2]
[426505430,1782491442000,-607.42547747,0.00033474,2]
[426505427,1782491442000,-300.0,0.00033474,2]
[426505431,1782491442000,-729.63483158,0.00033474,2]
[426505432,1782491442000,-303.18310389,0.00033474,2]
[426505429,1782491442000,-494.99640448,0.00033474,2]
[426505418,1782491442000,-596.93903619,0.00033474,2]
[426505445,1782491442000,-300.0,0.00033474,2]
[426505437,1782491442000,-576.04666195,0.00033474,2]
[426505436,1782491442000,-953.74057479,0.00033474,2]
[426505435,1782491442000,-529.2919048,0.00033474,2]
[426505438,1782491442000,-311.03956386,0.00033474,2]
[426505441,1782491442000,-513.60695689,0.00033474,2]
[426505443,1782491442000,-445.79408902,0.00033474,2]
[426505440,1782491442000,-596.93903619,0.00033474,2]
[426505439,1782491442000,-568.67920707,0.00033474,2]
[426505442,1782491442000,-453.99961565,0.00033474,2]
[426505447,1782491442000,-1100.41620887,0.00033474,2]
[426505382,1782491442000,-568.98374708,0.00033474,2]
[426505433,1782491442000,-301.95372069,0.00033474,2]
[426505405,1782491442000,-494.99640448,0.00033474,2]
[426505434,1782491442000,-345.55466882,0.00033474,2]
[426505402,1782491442000,-300.0,0.00033474,2]
[426505383,1782491442000,-445.79408902,0.00033474,2]
[426505407,1782491442000,-607.4254775,0.00033474,2]
[426505386,1782491442000,-494.99640448,0.00033474,2]
[426505389,1782491442000,-303.18310389,0.00033474,2]
[426505387,1782491442000,-607.42547746,0.00033474,2]
[426505390,1782491442000,-301.95372069,0.00033474,2]
[426505388,1782491442000,-729.63483158,0.00033474,2]
[426505397,1782491442000,-596.93903619,0.00033474,2]
[426505396,1782491442000,-568.67920707,0.00033474,2]
[426505393,1782491442000,-953.74057479,0.00033474,2]
[426505398,1782491442000,-513.60695689,0.00033474,2]
[426505394,1782491442000,-576.04666195,0.00033474,2]
[426505392,1782491442000,-529.2919048,0.00033474,2]
[426505403,1782491442000,-1100.41620887,0.00033474,2]
[426505409,1782491442000,-729.63483158,0.00033474,2]
[426505391,1782491442000,-345.55466882,0.00033474,2]
[426505414,1782491442000,-953.74057479,0.00033474,2]
[426505411,1782491442000,-301.95372069,0.00033474,2]
[426505415,1782491442000,-576.04666195,0.00033474,2]
[426505412,1782491442000,-345.55466882,0.00033474,2]
[426505399,1782491442000,-453.99961565,0.00033474,2]
[426505410,1782491442000,-303.18310389,0.00033474,2]
[426505400,1782491442000,-445.79408902,0.00033474,2]
[426505395,1782491442000,-311.03956386,0.00033474,2]
[426505413,1782491442000,-529.2919048,0.00033474,2]
[426505489,1782491443000,-953.74057479,0.00033474,2]
[426505486,1782491443000,-301.95372069,0.00033474,2]
[426505488,1782491443000,-529.2919048,0.00033474,2]
[426505498,1782491443000,-953.74057479,0.00033474,2]
[426505497,1782491443000,-529.2919048,0.00033474,2]
[426505484,1782491443000,-972.95108558,0.00033474,2]
[426505485,1782491443000,-303.18310389,0.00033474,2]
[426505481,1782491443000,-445.79408902,0.00033474,2]
[426505480,1782491443000,-453.99961565,0.00033474,2]
[426505483,1782491443000,-494.99640448,0.00033474,2]
[426505491,1782491443000,-568.67920707,0.00033474,2]
[426505496,1782491443000,-494.99640448,0.00033474,2]
[426505493,1782491443000,-453.99961565,0.00033474,2]
[426505510,1782491443000,-1806.07634004,0.00033474,2]
[426505487,1782491443000,-460.28030075,0.00033474,2]
[426505490,1782491443000,-576.04666195,0.00033474,2]
[426505495,1782491443000,-1100.41620887,0.00033474,2]
[426505494,1782491443000,-594.39744685,0.00033474,2]
[426505501,1782491443000,-605.38120788,0.00033474,2]
[426505499,1782491443000,-756.0418968,0.00033474,2]
[426505512,1782491443000,-1100.41620887,0.00033474,2]
[426505504,1782491443000,-529.2919048,0.00033474,2]
[426505503,1782491443000,-494.99640448,0.00033474,2]
[426505508,1782491443000,-529.2919048,0.00033474,2]
[426505507,1782491443000,-494.99640448,0.00033474,2]
[426505482,1782491443000,-1100.41620887,0.00033474,2]
[426505492,1782491443000,-794.38846489,0.00033474,2]
[426505479,1782491443000,-596.93903619,0.00033474,2]
[426505455,1782491443000,-301.95372069,0.00033474,2]
[426505478,1782491443000,-568.67920707,0.00033474,2]
[426505502,1782491443000,-1100.41620887,0.00033474,2]
[426505453,1782491443000,-729.63483159,0.00033474,2]
[426505456,1782491443000,-345.55466882,0.00033474,2]
[426505460,1782491443000,-311.03956386,0.00033474,2]
[426505459,1782491443000,-576.04666195,0.00033474,2]
[426505454,1782491443000,-303.18310389,0.00033474,2]
[426505451,1782491443000,-494.99640448,0.00033474,2]
[426505452,1782491443000,-607.42547749,0.00033474,2]
[426505458,1782491443000,-953.74057479,0.00033474,2]
[426505457,1782491443000,-529.2919048,0.00033474,2]
[426505462,1782491443000,-596.93903619,0.00033474,2]
[426505461,1782491443000,-568.67920707,0.00033474,2]
[426505475,1782491443000,-953.74057479,0.00033474,2]
[426505472,1782491443000,-301.95372069,0.00033474,2]
[426505463,1782491443000,-684.94432109,0.00033474,2]
[426505470,1782491443000,-729.63483158,0.00033474,2]
[426505466,1782491443000,-347.36102605,0.00033474,2]
[426505467,1782491443000,-1100.41620887,0.00033474,2]
[426505464,1782491443000,-453.99961565,0.00033474,2]
[426505465,1782491443000,-445.79408902,0.00033474,2]
[426505469,1782491443000,-607.42547749,0.00033474,2]
[426505471,1782491443000,-303.18310389,0.00033474,2]
[426505468,1782491443000,-494.99640448,0.00033474,2]
[426505474,1782491443000,-529.2919048,0.00033474,2]
[426505476,1782491443000,-576.04666195,0.00033474,2]
[426505477,1782491443000,-414.58464179,0.00033474,2]
[426505473,1782491443000,-345.55466882,0.00033474,2]
[426505505,1782491443000,-953.74057479,0.00033474,2]
[426505500,1782491443000,-756.6098703,0.00033474,2]
[426505509,1782491443000,-953.74057479,0.00033474,2]
[426505565,1782491443000,-536.46245821,0.00033474,2]
[426505566,1782491443000,-1806.24724654,0.00033474,2]
[426505570,1782491443000,-731.77236392,0.00033474,2]
[426505572,1782491443000,-311.89025227,0.00033474,2]
[426505569,1782491443000,-536.46245821,0.00033474,2]
[426505567,1782491443000,-311.03956386,0.00033474,2]
[426505568,1782491443000,-598.58100005,0.00033474,2]
[426505571,1782491443000,-1806.24724654,0.00033474,2]
[426505573,1782491443000,-1103.63392377,0.00033474,2]
[426505561,1782491443000,-536.46245821,0.00033474,2]
[426505575,1782491443000,-1806.24724654,0.00033474,2]
[426505584,1782491443000,-300.0,0.00033474,2]
[426505585,1782491443000,-301.35779199,0.00033474,2]
[426505579,1782491443000,-300.0,0.00033474,2]
[426505578,1782491443000,-300.0,0.00033474,2]
[426505577,1782491443000,-300.8787966,0.00033474,2]
[426505576,1782491443000,-310.97524334,0.00033474,2]
[426505574,1782491443000,-536.46245821,0.00033474,2]
[426505580,1782491443000,-536.46245821,0.00033474,2]
[426505583,1782491443000,-570.3607053,0.00033474,2]
[426505581,1782491443000,-956.50260522,0.00033474,2]
[426505582,1782491443000,-1806.24724654,0.00033474,2]
[426505587,1782491443000,-536.46245821,0.00033474,2]
[426505590,1782491443000,-536.46245821,0.00033474,2]
[426505589,1782491443000,-300.0,0.00033474,2]
[426505588,1782491443000,-1806.24724654,0.00033474,2]
[426505506,1782491443000,-1100.41620887,0.00033474,2]
[426505563,1782491443000,-536.46245821,0.00033474,2]
[426505564,1782491443000,-1806.24724654,0.00033474,2]
[426505586,1782491443000,-300.0,0.00033474,2]
[426505560,1782491443000,-1806.24724654,0.00033474,2]
[426505562,1782491443000,-1806.24724654,0.00033474,2]
[426505514,1782491443000,-494.99640448,0.00033474,2]
[426505516,1782491443000,-536.46245821,0.00033474,2]
[426505533,1782491443000,-536.46245821,0.00033474,2]
[426505519,1782491443000,-1806.07634004,0.00033474,2]
[426505591,1782491443000,-1806.24724654,0.00033474,2]
[426505529,1782491443000,-1806.07634004,0.00033474,2]
[426505527,1782491443000,-315.23938596,0.00033474,2]
[426505534,1782491443000,-1806.07634004,0.00033474,2]
[426505523,1782491443000,-494.99640448,0.00033474,2]
[426505521,1782491443000,-363.58768833,0.00033474,2]
[426505530,1782491443000,-494.99640448,0.00033474,2]
[426505518,1782491443000,-953.74057479,0.00033474,2]
[426505536,1782491443000,-660.04772374,0.00033474,2]
[426505525,1782491443000,-536.46245821,0.00033474,2]
[426505558,1782491443000,-1806.24724654,0.00033474,2]
[426505538,1782491443000,-536.46245821,0.00033474,2]
[426505556,1782491443000,-1806.07634004,0.00033474,2]
[426505554,1782491443000,-536.46245821,0.00033474,2]
[426505550,1782491443000,-536.46245821,0.00033474,2]
[426505544,1782491443000,-1806.07634004,0.00033474,2]
[426505552,1782491443000,-1806.07634004,0.00033474,2]
[426505542,1782491443000,-536.46245821,0.00033474,2]
[426505559,1782491443000,-536.46245821,0.00033474,2]
[426505548,1782491443000,-1806.07634004,0.00033474,2]
[426505546,1782491443000,-536.46245821,0.00033474,2]
[426505540,1782491443000,-1806.07634004,0.00033474,2]
[426505557,1782491443000,-536.46245821,0.00033474,2]
[426505635,1782491444000,-300.0,0.00033474,2]
[426505630,1782491444000,-300.00000001,0.00033474,2]
[426505636,1782491444000,-311.01241424,0.00033474,2]
[426505646,1782491444000,-300.0,0.00033474,2]
[426505631,1782491444000,-410.58010792,0.00033474,2]
[426505632,1782491444000,-300.0,0.00033474,2]
[426505623,1782491444000,-607.4254775,0.00033474,2]
[426505633,1782491444000,-345.55466882,0.00033474,2]
[426505627,1782491444000,-729.63483157,0.00033474,2]
[426505628,1782491444000,-405.27608486,0.00033474,2]
[426505629,1782491444000,-300.30878399,0.00033474,2]
[426505647,1782491444000,-300.0,0.00033474,2]
[426505634,1782491444000,-1806.24724654,0.00033474,2]
[426505639,1782491444000,-300.0,0.00033474,2]
[426505658,1782491444000,-368.5026996,0.00033474,2]
[426505640,1782491444000,-300.00000001,0.00033474,2]
[426505643,1782491444000,-300.0,0.00033474,2]
[426505637,1782491444000,-300.0,0.00033474,2]
[426505638,1782491444000,-300.0,0.00033474,2]
[426505645,1782491444000,-445.83627764,0.00033474,2]
[426505642,1782491444000,-513.60695689,0.00033474,2]
[426505644,1782491444000,-300.0,0.00033474,2]
[426505648,1782491444000,-300.0,0.00033474,2]
[426505650,1782491444000,-300.0,0.00033474,2]
[426505649,1782491444000,-300.70204482,0.00033474,2]
[426505651,1782491444000,-300.0,0.00033474,2]
[426505653,1782491444000,-300.0,0.00033474,2]
[426505625,1782491444000,-343.0135194,0.00033474,2]
[426505641,1782491444000,-300.00000001,0.00033474,2]
[426505624,1782491444000,-300.38134144,0.00033474,2]
[426505593,1782491444000,-1806.24724654,0.00033474,2]
[426505622,1782491444000,-300.06232084,0.00033474,2]